Cogmind - Beta 13 @@@ ROGUE MODE // 2024.03.01 @ 21:43:47 Player: TheSlyFawkes Result: Destroyed by G-47 Trooper with Particle Gun Performance ------------- Evolutions (0) 0 Regions Visited (1) 200 Robots Destroyed (9) 45 Value Destroyed (273) 273 Prototype IDs (0) 0 Alien Tech Used (0) 0 Bonus (0) 0 TOTAL SCORE: 518 Bonus ------- None Cogmind --------- Core Integrity 0/250 Matter 276/300 Energy 125/125 System Corruption 0% Temperature Cool (9) Movement Treading (160) Location -10/Materials Parts ------- > --- POWER (1) -------- Light Ion Engine > --- PROPULSION (2) --- Light Treads Light Treads > --- UTILITY (2) ------ Small Storage Unit > --- WEAPON (2) ------- Light Assault Rifle > --- INVENTORY (8) ---- Ion Engine Light Treads Light Treads Aluminum Leg Aluminum Leg Sensor Array Grenade Launcher Peak State ------------ > --- POWER ------------ Ion Engine > --- PROPULSION ------- Wheel Wheel > --- UTILITY ---------- Small Storage Unit Propulsion Shielding > --- WEAPON ----------- Medium Laser Light Assault Rifle > --- INVENTORY -------- Ion Engine Light Ion Engine Light Treads Light Treads Aluminum Leg Aluminum Leg Light Assault Rifle Grenade Launcher [Rating: 7] Favorites ----------- Power Ion Engine Engine Ion Engine Propulsion Light Treads Treads Light Treads Wheel Wheel Utility Small Storage Unit Storage Small Storage Unit Protection Propulsion Shielding Weapon Light Assault Rifle Energy Gun Medium Laser Ballistic Gun Light Assault Rifle Build | -11 -10 ------- Run | Yrd Mat Slots Evolved . | . . Power . | . . Propulsion . | . . Utility . | . . Weapon . | . . Parts Attached 16 | 6 10 Power 3 | 1 2 Engine 3 | 1 2 Core . | . . Reactor . | . . Propulsion 7 | 2 5 Treads 5 | . 5 Leg . | . . Wheel 2 | 2 . Hover . | . . Flight . | . . Utility 2 | 1 1 Device . | . . Storage 1 | 1 . Processor . | . . Hackware . | . . Protection 1 | . 1 Artifact . | . . Weapon 4 | 2 2 Energy Gun 1 | 1 . Energy Cannon . | . . Ballistic Gun 3 | 1 2 Ballistic Cannon . | . . Launcher . | . . Special Weapon . | . . Impact Weapon . | . . Slashing Weapon . | . . Piercing Weapon . | . . Special Melee Weapon . | . . Unidentified Prototypes . | . . Parts Lost 4 | . 4 Power 2 | . 2 Propulsion . | . . Utility 1 | . 1 Weapon 1 | . 1 Highest Loss Streak 2 | . 2 To Critical Strikes . | . . Average Slot Usage (%) 84 | . 84 Engine 10 | . 10 Treads 20 | . 20 Wheel 7 | . 7 Storage 14 | . 14 Protection 7 | . 7 Energy Gun 8 | . 8 Ballistic Gun 13 | . 13 Naked Turns . | . . Heaviest Build 14 | 13 14 Greatest Support 40 | 20 40 Greatest Overweight (x) . | . . Average Overweight (x) . | . . Largest Inventory Capacity 8 | 8 8 Average Capacity 7 | 7 8 Most Carried 8 | 7 8 Average Carried 6 | 4 6 Final Capacity 8 | 8 8 Final Carried 7 | 7 7 Class Distribution -------------------- 100% | Mutant Dominant Class ---------------- Mutant | -10/Materials Resources | -11 -10 ----------- Run | Yrd Mat Matter Collected 361 | 264 97 Remotely . | . . Salvage Created 409 | 94 315 Parts 23 | 4 19 Haulers Intercepted . | . . Recyclers Shooed 1 | . 1 Parts Field Recycled . | . . Retrieved Matter . | . . Parts Self-Destructed . | . . Prevented . | . . Kills | -11 -10 ------- Run | Yrd Mat Combat Hostiles Destroyed 7 | . 7 Guns 6 | . 6 Classes Destroyed 3 | 1 2 Recycler 1 | 1 . Watcher 1 | . 1 Grunt 7 | . 7 Best Kill Streak 4 | 1 4 Combat Bots Only 4 | . 4 Max Kills in Single Turn 1 | 1 1 Gunslinging . | . . Exploded . | . . Melee . | . . Uniques/NPCs Destroyed . | . . Combat | -11 -10 -------- Run | Yrd Mat Hostile Shots Fired 91 | . 91 Missed 21 | . 21 Damage Taken 847 | . 847 Core 254 | . 254 Absorbed by Shields . | . . Redirected to Shielding 52 | . 52 Core Remaining (%) 100 | 100 . Volleys Fired 45 | 4 41 Largest 2 | 2 2 Hottest 70 | 70 70 Shots Fired 66 | 8 58 Gun 66 | 8 58 Cannon . | . . Launcher . | . . Special . | . . Kinetic 45 | 4 41 Thermal 21 | 4 17 Explosive . | . . Electromagnetic . | . . Robot Hit Streak 11 | 3 11 Robot Miss Streak 2 | 2 2 Penetration Max . | . . Secondary Targets . | . . Shots Hit Robots 46 | 5 41 Core Hits 20 | 2 18 Critical Kills . | . . Critical Parts Destroyed . | . . Critical Strikes 1 | . 1 Burn 1 | . 1 Melee Attacks . | . . Impact . | . . Slashing . | . . Piercing . | . . Sneak Attacks . | . . Combat Hostiles . | . . Follow-up Attacks . | . . Damage Inflicted 427 | 47 380 Guns 424 | 47 377 Cannons . | . . Explosions . | . . Melee . | . . Ramming 3 | . 3 Kinetic 275 | 23 252 Thermal 149 | 24 125 Explosive . | . . Electromagnetic . | . . Impact . | . . Slashing . | . . Piercing . | . . Highest Corruption . | . . Average Corruption . | . . Corruption Purged . | . . Corruption Blocked . | . . Overload Shots . | . . Overflow Damage . | . . Projectiles . | . . Explosions . | . . Melee . | . . Knockbacks . | . . Impact . | . . Kinetic . | . . Secondary . | . . Self-Inflicted Damage . | . . Shots . | . . Rammed 5 | . 5 Targets Rammed 5 | . 5 Kicked . | . . Crushed . | . . Highest Temperature 311 | 40 311 Average Temperature 132 | 20 150 Received Heat Transfer 480 | . 480 Siege Activations . | . . Robots Corrupted . | . . Combat Hostiles . | . . Parts Fried . | . . Impact Corruptions . | . . Robots Melted 1 | . 1 Combat Hostiles 1 | . 1 Parts Melted 1 | . 1 Heat Transferred 518 | 74 444 Parts Sabotaged . | . . Parts Stolen . | . . Parts Stripped . | . . Power Chain Reactions . | . . Alert | -11 -10 ------- Run | Yrd Mat Peak Influence 177 | 5 177 Initial 3 | . 3 Average 48 | . 53 Maximum Alert Level . | . . Low Security (%) 100 | 100 100 Level 1 . | . . Level 2 . | . . Level 3 . | . . Level 4 . | . . Level 5 . | . . High Security . | . . Max Security . | . . Squads Dispatched 3 | . 3 Investigation 2 | . 2 Extermination . | . . Reinforcement 1 | . 1 Assault . | . . Garrison . | . . Intercept . | . . Searches Triggered . | . . Construction Impeded . | . . Haulers Reinforced . | . . Active Scanning Responses . | . . Cargo Convoy Interrupts . | . . Stealth | -11 -10 --------- Run | Yrd Mat Distress Signals 2 | . 2 Communications Jammed . | . . Distress Signals . | . . Times Spotted 16 | . 16 Peak Tracking Total 5 | . 5 Tactical Retreats 1 | . 1 Traps | -11 -10 ------- Run | Yrd Mat Traps Triggered 2 | . 2 Indirectly . | . . Trap Hack Attempts . | . . Triggered . | . . Disarmed . | . . Reprogrammed . | . . Reused . | . . Traps Extracted . | . . Installed . | . . Triggered . | . . Machines | -11 -10 ---------- Run | Yrd Mat Machines Disabled . | . . Max in Single Turn . | . . Machines Repaired . | . . Machines Dismantled . | . . Machines Sabotaged . | . . Overloaded Fab Kills . | . . Hacking | -11 -10 --------- Run | Yrd Mat Machines Accessed 7 | . 7 Terminals 6 | . 6 Fabricators . | . . Repair Stations . | . . Recycling Units 1 | . 1 Scanalyzers . | . . Garrison Access . | . . Total Hacks 13 | . 13 Successful 8 | . 8 Failed 5 | . 5 Catastrophic . | . . Database Lockouts . | . . Manual 12 | . 12 Terminals 10 | . 10 Fabricators . | . . Repair Stations . | . . Recycling Units 3 | . 3 Scanalyzers . | . . Garrison Access . | . . Terminal Hacks 1 | . 1 Record 1 | . 1 Fabricator Hacks . | . . Repair Station Hacks . | . . Recycling Unit Hacks . | . . Scanalyzer . | . . Garrison Access Hacks . | . . Unauthorized Hacks 7 | . 7 Terminals 5 | . 5 Botnet 4 | . 4 Operators 1 | . 1 Fabricators . | . . Repair Stations . | . . Recycling Units 2 | . 2 Monitor 1 | . 1 Mask 1 | . 1 Scanalyzers . | . . Garrison Access . | . . Data Cores Recovered . | . . Used . | . . Hacking Detections 6 | . 6 Full Trace Events 1 | . 1 Feedback Events . | . . Feedback Blocked . | . . Robot Schematics Acquired . | . . Robots Built . | . . Authchips . | . . Time . | . . Total Robot Build Rating . | . . Part Schematics Acquired . | . . Parts Built . | . . Authchips . | . . Time . | . . Total Part Build Rating . | . . Parts Repaired . | . . Time . | . . Parts Recycled . | . . Recycled Matter . | . . Retrieved Matter . | . . Retrieved Components . | . . Parts Scanalyzed . | . . Part Schematics Acquired . | . . Parts Damaged . | . . Bothacking | -11 -10 ------------ Run | Yrd Mat Used RIF Installer . | . . Robots Hacked . | . . Non-combat . | . . Combat . | . . Robot Hacks Applied . | . . Relay Couplers Released . | . . Fabnet Peak Effective % . | . . Robots Rewired . | . . Allies Hacked . | . . Hacks Repelled . | . . Allies | -11 -10 -------- Run | Yrd Mat Total Allies . | . . Largest Group . | . . Highest-Rated Group . | . . Highest-Rated Ally . | . . Total Orders . | . . Ally Attacks . | . . Total Damage . | . . Kills . | . . Allies Corrupted . | . . Allies Melted . | . . Intel | -11 -10 ------- Run | Yrd Mat Robot Analysis Total . | . . Derelict Logs Recovered . | . . Drone Launches . | . . Drone Recoveries . | . . Exploration | -11 -10 ------------- Run | Yrd Mat Turns Passed 966 | 83 883 Spaces Moved 655 | 70 585 Core 1 | 1 . Treads 326 | . 326 Legs . | . . Wheels 328 | 69 259 Hover . | . . Flight . | . . Fastest Speed 50 | 50 80 Average Speed 119 | 79 124 Slowest Speed 160 | 80 160 Overloaded Moves . | . . Propulsion Burnouts . | . . Robots Hopped . | . . Cave-ins Triggered . | . . Exploration Rate (%) 42 | 4 80 Regions Visited 1 Branch Regions . Pre-discovered Areas . | . . Known Exits Taken . | . . Unknown Exits Taken 1 | 1 . Scrap Searched . | . . Spaces Dug . | . . Terrain Destroyed . | . . Melee . | . . Projectile . | . . AOE . | . . Terrain Rammed . | . . Walls Destroyed . | . . Machines Disabled . | . . Actions | -11 -10 --------- Run | Yrd Mat Total 770 | 86 684 Wait 35 | . 35 Move 654 | 69 585 Hop . | . . Pick Up 11 | 7 4 Fast Attach 8 | 6 2 Attach 2 | . 2 Detach . | . . Swap 6 | . 6 Drop 4 | . 4 Fire 45 | 4 41 Melee . | . . Ram . | . . Kick . | . . Crush 5 | . 5 Escape Stasis . | . . Rewire . | . . Trap . | . . Miscellaneous . | . . Route ------- -11/Scrapyard -10/Materials (discovered 3 exits: [*Mat x2] / [*Min]) History --------- Turn | Location | Event 7 | -11/Scrapyard | Discovered new exit (range 15) 84 | -11/Scrapyard | Entered Materials 239 | -10/Materials | Discovered new exit (range 11) 286 | -10/Materials | Discovered new exit (range 10) 303 | -10/Materials | Build established: Mutant 380 | -10/Materials | Core integrity fell below 50% 702 | -10/Materials | Core integrity fell below 20% 933 | -10/Materials | Discovered new exit (range 6) 967 | -10/Materials | Destroyed by G-47 Trooper with Particle Gun Last Messages --------------- >> MONITOR: Recycling Unit M002 accepting Aluminum Leg (85%). Connecting with Terminal... >>Trojan(Botnet) Trojan loaded successfully. Testing... Terminal linked with 3 systems. Awaiting botnet instructions. >> MONITOR: Recycling Unit M002 accepting Aluminum Leg (78%). >> MONITOR: Recycling Unit M002 accepting Ion Engine (78%). >> MONITOR: Recycling Unit M002 accepting Aluminum Leg (71%). >> MONITOR: Recycling Unit M002 accepting Ion Engine (83%). Acquired Sensor Array. Connecting with Terminal... EXIT=FOUND Slammed into G-47 Trooper. Map ----- +----------------------------------------------------+ | ?????? """ """ ## #########????????? | | ?????# """ """ ## #########????????? | | ?????# """ """ # #????##### | | ?????# %# #???? # | | ?????# %+% """ #????" # | | ?????# *#% "T" #????" # | | ?????# # ## """ # | | ?????# ## ## # | | ?????############ ## """ !!# | | ??????? # ## """ !!# | | ?????? """ """ # ## """ # | | ???#? """ """ # """ / ## ! # | | ???# """ """ # """ ## # | | ???# # """ ## # | | ??????#######+### ######+### | | ?????????# | | ?????????# < | | ?????????# | | ?????????### ######################## | | ???????????# #???????????????????#### | | ???????????# #???????????????????# | | ???????????# #??????#??????????o?+ | | ???????????# #???? #????????????# | | ???????????# #?? #????????????# | | ???????????# # #????????????# | | ???????????# @g " " #?????######## | | ???????????# # "R" #?????# [# | | ???????????# #??""" #?????# # | | ???????????# #????###?????# """ # | | ???????????# ????????????# """ # " | | ???????????# ????????????# """ + T | | ???????????+ "????????????# # " | | ???????????# "????????????######## | | ???????????# "???????????????????# | | ??????????? ???????????????????# | | ???????????a ???????????????????# | | ???????????/###???????????????????# | | ??????????????????????????????????# | | ??????????????????????????????????# | | ??????????????????????????????????# | | ??????????????????????????????????# | | ??????????????????????????????????#### | | ?????????????????????????????????????? | | ?????????????????????????????????????? | | ?????????????????????????????????????? | | ?????????????????????????????????????? | | ?????????????????????????????????????? | | ?????????????????????????????????????? | | | | | +----------------------------------------------------+ Best States ------------- Heat Dissipation 25 Energy Generation 10 Energy Capacity 250 Matter Stores 300 Matter Capacity 300 Sight Range 16 Terrain Scan Density 10 Propulsion Shielding 33 Evasion (%) 44 Recoil Reduction 2 Item Schematics ----------------- None Robot Schematics ------------------ None Fabricated ------------ Nothing Alien Tech Used ----------------- None Achievements -------------- None Challenges ------------ None Game ------ Seed TransportCoolantMultitool Manual? 0 Play Time 00:17:55 Cumulative 31.1 hours Start 2024.03.01 @ 21:27:29 End 2024.03.01 @ 21:43:47 Sessions 1 Manual Loads 0 Difficulty Rogue Special Mode None Game No. 47 Rogue 46 Adventurer 1 Explorer 0 Win Type - Total 0 Types 0/0/0/0/0/0/0/0/0 Lore% 19 Gallery% 23 Achievement% 26 Wizard Run 0 Options --------- Layout 1 ASCII 0 Keyboard 0 Movement Numpad Keybinds 0 Fullscreen 1 Font 24/Smallcaps Map View 50x35 Zoom Use 0% Tactical HUD 0 Map Filters NONE Filters NONE Steam 1 RUN: fa478359-4c0d-4651-a3ae-dc793067111f